{"text_format":"2","workbook":"xlsx","n_sheets":19,"sheets":["Cover","INDICE","01_Scheda_anagrafica","02.01_Ricognizione_Dirette","02.02_Ricognizione_Indirette","02.03_Grafico_Relazioni","03.01_Finalità_Attività_Tusp","03.01_Finalità_Attività_Tus ES","03.01_Finalità_Attività_Tus (IS","03.02_Condizioni_Art20co.2_Tusp","03.02_Condizioni_Art20co.2_ (es","03.02_Condizioni_Art20co.2_ (IS","04_Mantenimento","05.01_Azioni_Contenimento_Costi","05.02_Azioni_Cessione","05.03_Azioni_Liquidazione","05.04_Azioni_Fusione","05.05_Riepilogo","06._Elenco_motivazioni"],"not_rendered":{"charts":0,"images":1,"macros":0,"external_links":0,"defined_names":23,"comments":0,"pivot_tables":0},"unopened":[],"bounds":{"document_bytes":16777216,"sheet_cells":100000,"run_cost":"one","rows_first":2000,"rows_last":500,"rows_between":2000,"halvings":0,"cell_chars":16384,"cell_head_chars":4096},"cells_cut":0,"cells_raw":0,"read":"whole","date_system":"1900"}

{"sheet":"Cover","index":0,"n_rows":11,"n_cols":3,"rows_kept":11,"cut":false,"hidden":false,"merged":[[18,2,18,6],[10,2,10,6],[16,2,16,6],[17,2,17,6]]}
{"$rows_empty":10}
[null,null,"LINEE DI INDIRIZZO PER  LE RICOGNIZIONI E I PIANI DI RAZIONALIZZAZIONE DEGLI ORGANISMI PARTECIPATI DAGLI ENTI TERITORIALI \n(ART. 24 D.LGS. N. 175/2016)"]

{"sheet":"INDICE","index":1,"n_rows":21,"n_cols":4,"rows_kept":21,"cut":false,"hidden":false,"merged":[]}
[]
[]
[]
[null,null,null,"INDICE"]
[]
[null,"01.",null,"SCHEDA ANAGRAFICA"]
[null,"02.",null,"RICOGNIZIONE DELLE SOCIETÀ PARTECIPATE"]
[null,null,"02.01.","Ricognizione delle società a partecipazione diretta"]
[null,null,"02.02.","Ricognizione delle società a partecipazione indiretta"]
[null,null,"02.03.","Grafico delle relazioni tra partecipazioni"]
[null,"03.",null,"REQUISITI TESTO UNICO DELLE SOCIETÀ A PARTECIPAZIONE PUBBLICA (T.U.S.P.)"]
[null,null,"03.01.","Finalità perseguite e attività ammesse (articoli 4 e 26)"]
[null,null,"03.02.","Condizioni art. 20 co. 2"]
[null,"04.",null,"MANTENIMENTO SENZA INTERVENTI DI RAZIONALIZZAZIONE"]
[null,"05.",null,"AZIONI DI RAZIONALIZZAZIONE"]
[null,null,"05.01.","Contenimento costi"]
[null,null,"05.02.","Cessione/Alienazione quote"]
[null,null,"05.03.","Liquidazione"]
[null,null,"05.04.","Fusione/Incorporazione"]
[null,null,"05.05.","Riepilogo"]
[null,"06.",null,"ELENCO MOTIVAZIONI"]

{"sheet":"01_Scheda_anagrafica","index":2,"n_rows":71,"n_cols":11,"rows_kept":71,"cut":false,"hidden":false,"merged":[[1,2,3,6],[6,2,6,6],[17,5,17,6],[20,2,20,3],[20,5,20,6],[5,1,5,2],[13,2,13,5],[24,2,24,6],[26,2,26,3],[26,5,26,6],[28,2,28,6],[29,1,29,6]]}
[]
[null,null,"LINEE  GUIDA  PER  LE RICOGNIZIONI E I PIANI DI RAZIONALIZZAZIONE\nDEGLI ORGANISMI PARTECIPATI DAGLI ENTI TERITORIALI \n(ART.  24 D.LGS. N. 175/2016)"]
[]
[]
[]
[null,"01. SCHEDA ANAGRAFICA"]
[]
[null,null,"Tipologia Ente:",null,"Consorzio di servizi ex art. 30 D.Lgs. 267/2000"]
[]
[null,null,"Denominazione Ente:",null,"CONSORZIO SERVIZI VAL CAVALLINA",{"$nulls":4},"Impostare elenco enti"]
[]
[null,null,"Codice fiscale dell'Ente:",95173320169,{"$nulls":5},"Impostare elenco codici fiscali"]
[]
[null,null,"    L'ente ha già adottato il piano operativo di razionalizzazione ai sensi dell'art. 1 co. 612, l. n. 190/2014",null,null,null,"SI"]
[]
[]
[]
[null,null,"Dati del referente/responsabile per la compilazione del piano",null,null,"DIRETTORE"]
[]
[null,null,"Nome:",null,null,"Cognome:"]
[null,null,"ANGELO LUIGI",null,null,"ZAMBLERA"]
[]
[null,null,"Recapiti:"]
[null,null,"Indirizzo:"]
[null,null,"VIA F.LLI CALVI 1 TRESCORE BALNEARIO (BG)"]
[null,null,"Telefono:",null,null,"Fax:"]
[null,null,"3297503888",null,null,"035943055"]
[null,null,"Posta elettronica:"]
[null,null,"info@consorzioservizi.valcavallina.bg.it"]
{"$rows_empty":8}
[{"$nulls":9},"Regione","Codice fiscale"]
[]
[{"$nulls":9},"Ente","Codice fiscale"]
[{"$nulls":9},"ABRUZZO",80003170661]
[{"$nulls":9},"BASILICATA",80002950766]
[{"$nulls":9},"CALABRIA","02205340793"]
[{"$nulls":9},"CAMPANIA"]
[{"$nulls":9},"EMILIA-ROMAGNA"]
[{"$nulls":9},"FRIULI-VENEZIA GIULIA",80014930327]
[{"$nulls":9},"LAZIO",80143490581]
[{"$nulls":9},"LIGURIA","00849050109"]
[{"$nulls":9},"LOMBARDIA",80050050154]
[{"$nulls":9},"MARCHE",80008630420]
[{"$nulls":9},"MOLISE","00169440708"]
[{"$nulls":9},"PIEMONTE",80087670016]
[{"$nulls":9},"PROVINCIA AUTONOMA DI BOLZANO","00390090215"]
[{"$nulls":9},"PROVINCIA AUTONOMA DI TRENTO","00337460224"]
[{"$nulls":9},"PUGLIA",80017210727]
[{"$nulls":9},"SARDEGNA",80002870923]
[{"$nulls":9},"SICILIA",80012000826]
[{"$nulls":9},"TOSCANA","01386030488"]
[{"$nulls":9},"TRENTINO ALTO-ADIGE",80003690221]
[{"$nulls":9},"UMBRIA",80000130544]
[{"$nulls":9},"VALLE D'AOSTA"]
[{"$nulls":9},"VENETO",80007580279]
[]
[]
[]
[]
[]
[]
[{"$nulls":10},"Regione/Provincia autonoma"]
[{"$nulls":10},"Provincia/Città metropolitana"]
[{"$nulls":10},"Comune"]

{"sheet":"02.01_Ricognizione_Dirette","index":3,"n_rows":233,"n_cols":13,"rows_kept":233,"cut":false,"hidden":false,"merged":[]}
[null,"02. RICOGNIZIONE DELLE SOCIETÀ PARTECIPATE"]
[null,"Se l'ente partecipa al capitale di una società sia direttamente sia indirettamente, compilare sia la scheda 02.01. sia la scheda 02.02."]
[null,"02.01. Ricognizione delle società a partecipazione diretta"]
[null,"Progressivo","Codice fiscale società","Denominazione società","Anno di costituzione","% Quota di partecipazione","Attività svolta","Partecipazione di controllo","Società in house","Quotata (ai sensi del d.lgs. n. 175/2016)","Holding pura"]
[null,"A","B","C","D","E","F","G","H","I","J"]
[null,1,"02544690163","Val Cavallina Servizi srl",1997,75.94,"servizi pubblici locali igiene ambientale e servizi amministrativi strumentali","SI","SI","NO","NO"]
{"$rows_empty":10}
[null,"Le società a partecipazione diretta (quotate e non quotate) sono sempre oggetto di ricognizione, anche se non controllate dall'ente."]
[null,"Colonna B: Inserire codice di 11 cifre per le società aventi sede in Italia; codice di 11 cifre seguito da \"E\" per le società aventi sede all'estero."]
[null,"Colonna C: Inserire la ragione sociale comprensiva della forma giuridica."]
[null,"Colonna E: Inserire valori comprensivi di decimali."]
[null,"Colonna F: Inserire una descrizione sintetica della/e attività effettivamente svolta/e."]
[null,"Colonna G: Indicare se la partecipazione detenuta dall'amministrazione è di controllo ai sensi dell'art. 2359 c.c."]
[null,"Colonna H: Indicare \"SI\" se l'Amministrazione esercita il controllo analogo o più Amministrazioni esercitano il controllo analogo congiunto."]
[null,"Colonna I: Indicare \"SI\" se la società emette azioni quotate in mercati regolamentati; se ha emesso, al 31/12/2015, strumenti finanziari quotati in mercati regolamentati; "]
[null,"                se sia partecipata da società quotate o che hanno emesso strumenti finanziari quotati."]
[null,"Colonna J: Indicare \"SI\" se la società ha come oggetto sociale esclusivo la gestione delle partecipazioni societarie per conto dell'Amministrazione."]
{"$rows_empty":37}
[{"$nulls":11},"SI",2017]
[{"$nulls":11},"NO",{"$f":"+M64-1","v":2016}]
[{"$nulls":12},{"$f":"+M65-1","v":2015}]
[{"$nulls":12},2014]
[{"$nulls":12},2013]
[{"$nulls":12},2012]
[{"$nulls":12},2011]
[{"$nulls":12},2010]
[{"$nulls":12},2009]
[{"$nulls":12},2008]
[{"$nulls":12},2007]
[{"$nulls":12},2006]
[{"$nulls":12},2005]
[{"$nulls":12},2004]
[{"$nulls":12},2003]
[{"$nulls":12},2002]
[{"$nulls":12},2001]
[{"$nulls":12},2000]
[{"$nulls":12},1999]
[{"$nulls":12},1998]
[{"$nulls":12},1997]
[{"$nulls":12},1996]
[{"$nulls":12},1995]
[{"$nulls":12},1994]
[{"$nulls":12},1993]
[{"$nulls":12},1992]
[{"$nulls":12},1991]
[{"$nulls":12},1990]
[{"$nulls":12},1989]
[{"$nulls":12},1988]
[{"$nulls":12},1987]
[{"$nulls":12},1986]
[{"$nulls":12},1985]
[{"$nulls":12},1984]
[{"$nulls":12},1983]
[{"$nulls":12},1982]
[{"$nulls":12},1981]
[{"$nulls":12},1980]
[{"$nulls":12},1979]
[{"$nulls":12},1978]
[{"$nulls":12},1977]
[{"$nulls":12},1976]
[{"$nulls":12},1975]
[{"$nulls":12},1974]
[{"$nulls":12},1973]
[{"$nulls":12},1972]
[{"$nulls":12},1971]
[{"$nulls":12},1970]
[{"$nulls":12},1969]
[{"$nulls":12},1968]
[{"$nulls":12},1967]
[{"$nulls":12},1966]
[{"$nulls":12},1965]
[{"$nulls":12},1964]
[{"$nulls":12},1963]
[{"$nulls":12},1962]
[{"$nulls":12},1961]
[{"$nulls":12},1960]
[{"$nulls":12},1959]
[{"$nulls":12},1958]
[{"$nulls":12},1957]
[{"$nulls":12},1956]
[{"$nulls":12},1955]
[{"$nulls":12},1954]
[{"$nulls":12},1953]
[{"$nulls":12},1952]
[{"$nulls":12},{"$f":"+M129-1","v":1951}]
[{"$nulls":12},1950]
[{"$nulls":12},1949]
[{"$nulls":12},1948]
[{"$nulls":12},1947]
[{"$nulls":12},1946]
[{"$nulls":12},1945]
[{"$nulls":12},1944]
[{"$nulls":12},1943]
[{"$nulls":12},1942]
[{"$nulls":12},1941]
[{"$nulls":12},1940]
[{"$nulls":12},1939]
[{"$nulls":12},1938]
[{"$nulls":12},1937]
[{"$nulls":12},1936]
[{"$nulls":12},1935]
[{"$nulls":12},1934]
[{"$nulls":12},1933]
[{"$nulls":12},1932]
[{"$nulls":12},1931]
[{"$nulls":12},1930]
[{"$nulls":12},1929]
[{"$nulls":12},1928]
[{"$nulls":12},1927]
[{"$nulls":12},1926]
[{"$nulls":12},1925]
[{"$nulls":12},1924]
[{"$nulls":12},1923]
[{"$nulls":12},1922]
[{"$nulls":12},1921]
[{"$nulls":12},1920]
[{"$nulls":12},1919]
[{"$nulls":12},1918]
[{"$nulls":12},1917]
[{"$nulls":12},1916]
[{"$nulls":12},1915]
[{"$nulls":12},1914]
[{"$nulls":12},1913]
[{"$nulls":12},1912]
[{"$nulls":12},1911]
[{"$nulls":12},1910]
[{"$nulls":12},1909]
[{"$nulls":12},1908]
[{"$nulls":12},1907]
[{"$nulls":12},1906]
[{"$nulls":12},1905]
[{"$nulls":12},1904]
[{"$nulls":12},1903]
[{"$nulls":12},1902]
[{"$nulls":12},1901]
[{"$nulls":12},1900]
[{"$nulls":12},1899]
[{"$nulls":12},1898]
[{"$nulls":12},1897]
[{"$nulls":12},1896]
[{"$nulls":12},1895]
[{"$nulls":12},1894]
[{"$nulls":12},1893]
[{"$nulls":12},1892]
[{"$nulls":12},1891]
[{"$nulls":12},1890]
[{"$nulls":12},1889]
[{"$nulls":12},1888]
[{"$nulls":12},{"$f":"+M193-1","v":1887}]
[{"$nulls":12},1886]
[{"$nulls":12},1885]
[{"$nulls":12},1884]
[{"$nulls":12},1883]
[{"$nulls":12},1882]
[{"$nulls":12},1881]
[{"$nulls":12},1880]
[{"$nulls":12},1879]
[{"$nulls":12},1878]
[{"$nulls":12},1877]
[{"$nulls":12},1876]
[{"$nulls":12},1875]
[{"$nulls":12},1874]
[{"$nulls":12},1873]
[{"$nulls":12},1872]
[{"$nulls":12},1871]
[{"$nulls":12},1870]
[{"$nulls":12},1869]
[{"$nulls":12},1868]
[{"$nulls":12},1867]
[{"$nulls":12},1866]
[{"$nulls":12},1865]
[{"$nulls":12},1864]
[{"$nulls":12},1863]
[{"$nulls":12},1862]
[{"$nulls":12},1861]
[{"$nulls":12},1860]
[{"$nulls":12},1859]
[{"$nulls":12},1858]
[{"$nulls":12},1857]
[{"$nulls":12},1856]
[{"$nulls":12},1855]
[{"$nulls":12},1854]
[{"$nulls":12},1853]
[{"$nulls":12},1852]
[{"$nulls":12},1851]
[{"$nulls":12},1850]
[{"$nulls":12},1849]
[{"$nulls":12},1848]

{"sheet":"02.02_Ricognizione_Indirette","index":4,"n_rows":244,"n_cols":13,"rows_kept":244,"cut":false,"hidden":false,"merged":[[15,1,15,12]]}
[null,"02. RICOGNIZIONE DELLE SOCIETÀ PARTECIPATE"]
[null,"02.02. Ricognizione delle società a partecipazione indiretta"]
[]
[null,"Progressivo","Codice fiscale società","Denominazione società","Anno di costituzione","Denominazione società/organismo tramite","% Quota di partecipazione società/organismo tramite","% Quota di partecipazione indiretta Amministrazione","Attività svolta","Partecipazione di controllo","Società in house","Quotata (ai sensi del d.lgs. n. 175/2016)","Holding pura"]
[null,"A","B","C","D","E","F","G","H","I","J","K","L"]
[null,1,"03684550167","ESCO COMUNI srl",2010,"Val Cavallina Servizi srl",40,30.38,"produzione da fonti rinnovabili","NO","NO"]
[null,2,"03397840160","INERTI SYSTEM ECOLOGY SRL",2007,"Val Cavallina Servizi srl",40,30.38,"raccolta, trasporto rifiuti e conferimento agli impianti di smaltimento","NO","NO"]
{"$rows_empty":8}
[null,"Le società a partecipazione indiretta (quotate e non quotate) sono oggetto di ricognizione solo se detenute dall’ente per il tramite di una società/organismo sottoposto a controllo da parte dello stesso."]
[null,"Colonna B: Inserire codice di 11 cifre per le società aventi sede in Italia; codice di 11 cifre seguito da \"E\" per le società aventi sede all'estero."]
[null,"Colonna C: Inserire la ragione sociale comprensiva della forma giuridica."]
[null,"Colonna E: Inserire la denominazione delle società/organismi (1 o +) attraverso le quali l'ente partecipa alle medesime. Per le indirette di livello successivo, inserire la denominazione delle società/organismi"]
[null,"                 partecipanti (1 o +) del livello immediatamente precedente."]
[null,"Colonna F: indicare separatamente ciascuna quota di partecipazione (comprensiva di decimali) qualora la partecipazione sia detenuta attraverso 2 o + società/organismi tramite. "]
[null,"Colonna G: indicare una unica quota di partecipazione (comprensiva di decimali) determinata in proporzione alla quote di partecipazione dei livelli precedenti. "]
[null,"Colonna H: Inserire una descrizione sintetica della/e attività effettivamente svolta/e."]
[null,"Colonna I: Indicare se la partecipazione detenuta dall'amministrazione è di controllo ai sensi dell'art. 2359 c.c."]
[null,"Colonna J: Indicare \"SI\" se l'Amministrazione esercita il controllo analogo o più Amministrazioni esercitano il controllo analogo congiunto."]
[null,"Colonna K: Indicare \"SI\" se la società emette azioni quotate in mercati regolamentati; se ha emesso, al 31/12/2015, strumenti finanziari quotati in mercati regolamentati; "]
[null,"                se sia partecipata da società quotate o che hanno emesso strumenti finanziari quotati."]
[null,"Colonna L: Indicare \"SI\" se la società ha come oggetto sociale esclusivo la gestione delle partecipazioni societarie per conto dell'Amministrazione."]
{"$rows_empty":46}
[{"$nulls":11},"SI",2017]
[{"$nulls":11},"NO",{"$f":"+M75-1","v":2016}]
[{"$nulls":12},{"$f":"+M76-1","v":2015}]
[{"$nulls":12},2014]
[{"$nulls":12},2013]
[{"$nulls":12},2012]
[{"$nulls":12},2011]
[{"$nulls":12},2010]
[{"$nulls":12},2009]
[{"$nulls":12},2008]
[{"$nulls":12},2007]
[{"$nulls":12},2006]
[{"$nulls":12},2005]
[{"$nulls":12},2004]
[{"$nulls":12},2003]
[{"$nulls":12},2002]
[{"$nulls":12},2001]
[{"$nulls":12},2000]
[{"$nulls":12},1999]
[{"$nulls":12},1998]
[{"$nulls":12},1997]
[{"$nulls":12},1996]
[{"$nulls":12},1995]
[{"$nulls":12},1994]
[{"$nulls":12},1993]
[{"$nulls":12},1992]
[{"$nulls":12},1991]
[{"$nulls":12},1990]
[{"$nulls":12},1989]
[{"$nulls":12},1988]
[{"$nulls":12},1987]
[{"$nulls":12},1986]
[{"$nulls":12},1985]
[{"$nulls":12},1984]
[{"$nulls":12},1983]
[{"$nulls":12},1982]
[{"$nulls":12},1981]
[{"$nulls":12},1980]
[{"$nulls":12},1979]
[{"$nulls":12},1978]
[{"$nulls":12},1977]
[{"$nulls":12},1976]
[{"$nulls":12},1975]
[{"$nulls":12},1974]
[{"$nulls":12},1973]
[{"$nulls":12},1972]
[{"$nulls":12},1971]
[{"$nulls":12},1970]
[{"$nulls":12},1969]
[{"$nulls":12},1968]
[{"$nulls":12},1967]
[{"$nulls":12},1966]
[{"$nulls":12},1965]
[{"$nulls":12},1964]
[{"$nulls":12},1963]
[{"$nulls":12},1962]
[{"$nulls":12},1961]
[{"$nulls":12},1960]
[{"$nulls":12},1959]
[{"$nulls":12},1958]
[{"$nulls":12},1957]
[{"$nulls":12},1956]
[{"$nulls":12},1955]
[{"$nulls":12},1954]
[{"$nulls":12},1953]
[{"$nulls":12},1952]
[{"$nulls":12},{"$f":"+M140-1","v":1951}]
[{"$nulls":12},1950]
[{"$nulls":12},1949]
[{"$nulls":12},1948]
[{"$nulls":12},1947]
[{"$nulls":12},1946]
[{"$nulls":12},1945]
[{"$nulls":12},1944]
[{"$nulls":12},1943]
[{"$nulls":12},1942]
[{"$nulls":12},1941]
[{"$nulls":12},1940]
[{"$nulls":12},1939]
[{"$nulls":12},1938]
[{"$nulls":12},1937]
[{"$nulls":12},1936]
[{"$nulls":12},1935]
[{"$nulls":12},1934]
[{"$nulls":12},1933]
[{"$nulls":12},1932]
[{"$nulls":12},1931]
[{"$nulls":12},1930]
[{"$nulls":12},1929]
[{"$nulls":12},1928]
[{"$nulls":12},1927]
[{"$nulls":12},1926]
[{"$nulls":12},1925]
[{"$nulls":12},1924]
[{"$nulls":12},1923]
[{"$nulls":12},1922]
[{"$nulls":12},1921]
[{"$nulls":12},1920]
[{"$nulls":12},1919]
[{"$nulls":12},1918]
[{"$nulls":12},1917]
[{"$nulls":12},1916]
[{"$nulls":12},1915]
[{"$nulls":12},1914]
[{"$nulls":12},1913]
[{"$nulls":12},1912]
[{"$nulls":12},1911]
[{"$nulls":12},1910]
[{"$nulls":12},1909]
[{"$nulls":12},1908]
[{"$nulls":12},1907]
[{"$nulls":12},1906]
[{"$nulls":12},1905]
[{"$nulls":12},1904]
[{"$nulls":12},1903]
[{"$nulls":12},1902]
[{"$nulls":12},1901]
[{"$nulls":12},1900]
[{"$nulls":12},1899]
[{"$nulls":12},1898]
[{"$nulls":12},1897]
[{"$nulls":12},1896]
[{"$nulls":12},1895]
[{"$nulls":12},1894]
[{"$nulls":12},1893]
[{"$nulls":12},1892]
[{"$nulls":12},1891]
[{"$nulls":12},1890]
[{"$nulls":12},1889]
[{"$nulls":12},1888]
[{"$nulls":12},{"$f":"+M204-1","v":1887}]
[{"$nulls":12},1886]
[{"$nulls":12},1885]
[{"$nulls":12},1884]
[{"$nulls":12},1883]
[{"$nulls":12},1882]
[{"$nulls":12},1881]
[{"$nulls":12},1880]
[{"$nulls":12},1879]
[{"$nulls":12},1878]
[{"$nulls":12},1877]
[{"$nulls":12},1876]
[{"$nulls":12},1875]
[{"$nulls":12},1874]
[{"$nulls":12},1873]
[{"$nulls":12},1872]
[{"$nulls":12},1871]
[{"$nulls":12},1870]
[{"$nulls":12},1869]
[{"$nulls":12},1868]
[{"$nulls":12},1867]
[{"$nulls":12},1866]
[{"$nulls":12},1865]
[{"$nulls":12},1864]
[{"$nulls":12},1863]
[{"$nulls":12},1862]
[{"$nulls":12},1861]
[{"$nulls":12},1860]
[{"$nulls":12},1859]
[{"$nulls":12},1858]
[{"$nulls":12},1857]
[{"$nulls":12},1856]
[{"$nulls":12},1855]
[{"$nulls":12},1854]
[{"$nulls":12},1853]
[{"$nulls":12},1852]
[{"$nulls":12},1851]
[{"$nulls":12},1850]
[{"$nulls":12},1849]
[{"$nulls":12},1848]

{"sheet":"02.03_Grafico_Relazioni","index":5,"n_rows":9,"n_cols":6,"rows_kept":9,"cut":false,"hidden":false,"merged":[]}
["02. RICOGNIZIONE DELLE SOCIETÀ PARTECIPATE"]
["02.03. Grafico delle relazioni tra partecipazioni"]
[]
[]
[null,"Ente/Comune socio"]
[]
[null,"Val Cavallina Servizi srl",null,null,null,"Inerti System Ecology Srl"]
[]
[null,"ESCO COMUNI srl"]

{"sheet":"03.01_Finalità_Attività_Tusp","index":6,"n_rows":58,"n_cols":7,"rows_kept":58,"cut":false,"hidden":false,"merged":[[51,1,51,4],[28,1,28,4],[34,1,34,4],[13,1,13,4],[38,1,38,4],[50,1,50,4],[40,1,40,4],[42,1,42,4],[44,1,44,4],[46,1,46,4],[48,1,48,4],[15,1,15,4],[17,1,17,4],[19,1,19,4],[21,1,21,4],[24,1,24,4],[26,1,26,4],[30,1,30,4],[32,1,32,4],[36,1,36,4]]}
[]
[null,"03. REQUISITI TESTO UNICO DELLE SOCIETÀ A PARTECIPAZIONE PUBBLICA"]
[null,"03.01. Finalità perseguite e attività ammesse (articoli 4 e 26)"]
[null,"Compilare una scheda per ciascuna società"]
[null,null,null,"Progressivo società partecipata:","1 dir",null,"(a)"]
[]
[null,null,null,"Denominazione società partecipata:","Val Cavallina Servizi srl",null,"(b)"]
[]
[null,null,null,"Tipo partecipazione:","Diretta",null,"(c)"]
[]
[null,null,null,"Attività svolta:","Servizi pubblici locali di igiene ambientale e servizi strumentali amministrativi",null,"(d)"]
[]
[null,"indicare se la società:"]
["-","Rientra nell'Allegato \"A\" del d.lgs. n. 175/2016 (art. 26, co. 2)"]
[]
["-","Ha come oggetto esclusivo la gestione di fondi europei per conto dello Stato o delle Regioni, ovvero la realizzazione di progetti di ricerca finanziati dalle istituzioni dell'Unione Europea (art. 26, co. 2)"]
[]
["-","È stata esclusa, con deliberazione adottata ai sensi dell'art. 4 co. 9, secondo periodo, dall'applicazione totale o parziale delle disposizioni del medesimo articolo (solo per le società partecipate dalle Regioni/Prov. Aut.)"]
[]
["-","È destinataria dei provvedimenti di cui al d.lgs. n. 159/2011 (art. 26, co. 12-bis) "]
[]
["-","È autorizzata alla gestione delle case da gioco, ai sensi della legislazione vigente (art. 26, co. 12-sexies) "]
[]
[null,"Qualora non sia stata selezionata alcuna delle opzioni indicate ai punti precedenti, indicare se la società:"]
["-","È costituita in attuazione dell'art. 34 del regolamento CE n. 13/2013 - Gruppi d'Azione Locale (art. 4, co. 6)"]
[]
["-","Ha per oggetto sociale prevalente la gestione di spazi fieristici e l'organizzazione di eventi fieristici (art. 4, co. 7)"]
[]
["-","Ha per oggetto sociale prevalente la realizzazione e la gestione di impianti di trasporto a fune per la mobilità turistico-sportiva in aree montane (art. 4, co. 7)"]
[]
["-","Ha per oggetto sociale prevalente la produzione di energia da fonti rinnovabili (art. 4, co. 7)"]
[]
["-","Ha caratteristiche di spin off o di start up universitario, o analoghe a quelle degli enti di ricerca, ovvero gestisce aziende agricole con funzioni didattiche (art. 4, co. 8)"]
[]
["-","Produce un servizio di interesse generale a rete (di cui all'art. 3-bis del d.l. 138/2011) fuori dall'ambito territoriale di riferimento, con affidamento dei servizi, in corso e nuovi, tramite procedure ad evidenza pubblica (art. 4, co. 9-bis)"]
[]
["-","Produce beni e servizi strettamente necessari per il perseguimento delle finalità istituzionali dell'ente (art. 4, co. 1)"]
[]
["-","Produce un servizio di interesse generale (art. 4, co. 2, lett. a)"]
[]
["-","Progetta e realizza un'opera pubblica sulla base di un accordo di programma fra amministrazioni pubbliche (art. 4, co. 2, lett. b)"]
[]
["-","Realizza e gestisce un'opera pubblica ovvero organizza e gestisce un servizio di interesse generale attraverso un contratto di partenariato pubblico/privato (art. 4, co. 2, lett. c)"]
[]
["-","Produce beni o servizi strumentali all'ente o agli enti pubblici partecipanti o alla svolgimento delle loro funzioni(art. 4, co. 2, lett. d)"]
[]
["-","Svolge servizi di committenza (art. 4, co. 2, lett. e)"]
[]
["-","Valorizza il patrimonio immobiliare dell'amministrazione partecipante (art. 4, co. 3)"]
[]
[null,"Indicare le motivazioni della riconducibilità o meno ai vincoli di scopo di cui al co. 1 o ad una delle attività di cui ai commi 2 e 3, anche con riferimento alle società che svolgono le attività di cui ai commi 6, 7, 8:"]
[]
[]
[null,"(a): Inserire uno dei progressivi già indicati nelle schede di ricognizione (02.01; 02.02)."]
[null,"(b): Inserire la ragione sociale come indicata nelle schede di ricognizione (02.01; 02.02)."]
[null,"(c): Indicare il tipo di partecipazione distinguendo i casi in cui la società sia partecipata direttamente, indirettamente (tramite altra società/organismo),"]
[null,"       ovvero in parte direttamente e in parte indirettamente."]
[null,"(d): Inserire l'attività come indicata nelle schede di ricognizione (02.01; 02.02)."]

{"sheet":"03.01_Finalità_Attività_Tus ES","index":7,"n_rows":58,"n_cols":7,"rows_kept":58,"cut":false,"hidden":false,"merged":[[50,1,50,4],[51,1,51,4],[38,1,38,4],[40,1,40,4],[42,1,42,4],[44,1,44,4],[46,1,46,4],[48,1,48,4],[36,1,36,4],[13,1,13,4],[15,1,15,4],[17,1,17,4],[19,1,19,4],[21,1,21,4],[24,1,24,4],[26,1,26,4],[28,1,28,4],[30,1,30,4],[32,1,32,4],[34,1,34,4]]}
[]
[null,"03. REQUISITI TESTO UNICO DELLE SOCIETÀ A PARTECIPAZIONE PUBBLICA"]
[null,"03.01. Finalità perseguite e attività ammesse (articoli 4 e 26)"]
[null,"Compilare una scheda per ciascuna società"]
[null,null,null,"Progressivo società partecipata:","1 ind",null,"(a)"]
[]
[null,null,null,"Denominazione società partecipata:","Esco Comuni SrL",null,"(b)"]
[]
[null,null,null,"Tipo partecipazione:","Indiretta",null,"(c)"]
[]
[null,null,null,"Attività svolta:","produzione da fonti rinnovabili",null,"(d)"]
[]
[null,"indicare se la società:"]
["-","Rientra nell'Allegato \"A\" del d.lgs. n. 175/2016 (art. 26, co. 2)"]
[]
["-","Ha come oggetto esclusivo la gestione di fondi europei per conto dello Stato o delle Regioni, ovvero la realizzazione di progetti di ricerca finanziati dalle istituzioni dell'Unione Europea (art. 26, co. 2)"]
[]
["-","È stata esclusa, con deliberazione adottata ai sensi dell'art. 4 co. 9, secondo periodo, dall'applicazione totale o parziale delle disposizioni del medesimo articolo (solo per le società partecipate dalle Regioni/Prov. Aut.)"]
[]
["-","È destinataria dei provvedimenti di cui al d.lgs. n. 159/2011 (art. 26, co. 12-bis) "]
[]
["-","È autorizzata alla gestione delle case da gioco, ai sensi della legislazione vigente (art. 26, co. 12-sexies) "]
[]
[null,"Qualora non sia stata selezionata alcuna delle opzioni indicate ai punti precedenti, indicare se la società:"]
["-","È costituita in attuazione dell'art. 34 del regolamento CE n. 13/2013 - Gruppi d'Azione Locale (art. 4, co. 6)"]
[]
["-","Ha per oggetto sociale prevalente la gestione di spazi fieristici e l'organizzazione di eventi fieristici (art. 4, co. 7)"]
[]
["-","Ha per oggetto sociale prevalente la realizzazione e la gestione di impianti di trasporto a fune per la mobilità turistico-sportiva in aree montane (art. 4, co. 7)"]
[]
["-","Ha per oggetto sociale prevalente la produzione di energia da fonti rinnovabili (art. 4, co. 7)"]
[]
["-","Ha caratteristiche di spin off o di start up universitario, o analoghe a quelle degli enti di ricerca, ovvero gestisce aziende agricole con funzioni didattiche (art. 4, co. 8)"]
[]
["-","Produce un servizio di interesse generale a rete (di cui all'art. 3-bis del d.l. 138/2011) fuori dall'ambito territoriale di riferimento, con affidamento dei servizi, in corso e nuovi, tramite procedure ad evidenza pubblica (art. 4, co. 9-bis)"]
[]
["-","Produce beni e servizi strettamente necessari per il perseguimento delle finalità istituzionali dell'ente (art. 4, co. 1)"]
[]
["-","Produce un servizio di interesse generale (art. 4, co. 2, lett. a)"]
[]
["-","Progetta e realizza un'opera pubblica sulla base di un accordo di programma fra amministrazioni pubbliche (art. 4, co. 2, lett. b)"]
[]
["-","Realizza e gestisce un'opera pubblica ovvero organizza e gestisce un servizio di interesse generale attraverso un contratto di partenariato pubblico/privato (art. 4, co. 2, lett. c)"]
[]
["-","Produce beni o servizi strumentali all'ente o agli enti pubblici partecipanti o alla svolgimento delle loro funzioni(art. 4, co. 2, lett. d)"]
[]
["-","Svolge servizi di committenza (art. 4, co. 2, lett. e)"]
[]
["-","Valorizza il patrimonio immobiliare dell'amministrazione partecipante (art. 4, co. 3)"]
[]
[null,"Indicare le motivazioni della riconducibilità o meno ai vincoli di scopo di cui al co. 1 o ad una delle attività di cui ai commi 2 e 3, anche con riferimento alle società che svolgono le attività di cui ai commi 6, 7, 8:"]
[]
[]
[null,"(a): Inserire uno dei progressivi già indicati nelle schede di ricognizione (02.01; 02.02)."]
[null,"(b): Inserire la ragione sociale come indicata nelle schede di ricognizione (02.01; 02.02)."]
[null,"(c): Indicare il tipo di partecipazione distinguendo i casi in cui la società sia partecipata direttamente, indirettamente (tramite altra società/organismo),"]
[null,"       ovvero in parte direttamente e in parte indirettamente."]
[null,"(d): Inserire l'attività come indicata nelle schede di ricognizione (02.01; 02.02)."]

{"sheet":"03.01_Finalità_Attività_Tus (IS","index":8,"n_rows":58,"n_cols":7,"rows_kept":58,"cut":false,"hidden":false,"merged":[[50,1,50,4],[51,1,51,4],[38,1,38,4],[40,1,40,4],[42,1,42,4],[44,1,44,4],[46,1,46,4],[48,1,48,4],[36,1,36,4],[13,1,13,4],[15,1,15,4],[17,1,17,4],[19,1,19,4],[21,1,21,4],[24,1,24,4],[26,1,26,4],[28,1,28,4],[30,1,30,4],[32,1,32,4],[34,1,34,4]]}
[]
[null,"03. REQUISITI TESTO UNICO DELLE SOCIETÀ A PARTECIPAZIONE PUBBLICA"]
[null,"03.01. Finalità perseguite e attività ammesse (articoli 4 e 26)"]
[null,"Compilare una scheda per ciascuna società"]
[null,null,null,"Progressivo società partecipata:","2 ind",null,"(a)"]
[]
[null,null,null,"Denominazione società partecipata:","Inerti System Ecology srl",null,"(b)"]
[]
[null,null,null,"Tipo partecipazione:","Indiretta",null,"(c)"]
[]
[null,null,null,"Attività svolta:","raccolta, trasporto rifiuti e conferimento agli impianti di smaltimento",null,"(d)"]
[]
[null,"indicare se la società:"]
["-","Rientra nell'Allegato \"A\" del d.lgs. n. 175/2016 (art. 26, co. 2)"]
[]
["-","Ha come oggetto esclusivo la gestione di fondi europei per conto dello Stato o delle Regioni, ovvero la realizzazione di progetti di ricerca finanziati dalle istituzioni dell'Unione Europea (art. 26, co. 2)"]
[]
["-","È stata esclusa, con deliberazione adottata ai sensi dell'art. 4 co. 9, secondo periodo, dall'applicazione totale o parziale delle disposizioni del medesimo articolo (solo per le società partecipate dalle Regioni/Prov. Aut.)"]
[]
["-","È destinataria dei provvedimenti di cui al d.lgs. n. 159/2011 (art. 26, co. 12-bis) "]
[]
["-","È autorizzata alla gestione delle case da gioco, ai sensi della legislazione vigente (art. 26, co. 12-sexies) "]
[]
[null,"Qualora non sia stata selezionata alcuna delle opzioni indicate ai punti precedenti, indicare se la società:"]
["-","È costituita in attuazione dell'art. 34 del regolamento CE n. 13/2013 - Gruppi d'Azione Locale (art. 4, co. 6)"]
[]
["-","Ha per oggetto sociale prevalente la gestione di spazi fieristici e l'organizzazione di eventi fieristici (art. 4, co. 7)"]
[]
["-","Ha per oggetto sociale prevalente la realizzazione e la gestione di impianti di trasporto a fune per la mobilità turistico-sportiva in aree montane (art. 4, co. 7)"]
[]
["-","Ha per oggetto sociale prevalente la produzione di energia da fonti rinnovabili (art. 4, co. 7)"]
[]
["-","Ha caratteristiche di spin off o di start up universitario, o analoghe a quelle degli enti di ricerca, ovvero gestisce aziende agricole con funzioni didattiche (art. 4, co. 8)"]
[]
["-","Produce un servizio di interesse generale a rete (di cui all'art. 3-bis del d.l. 138/2011) fuori dall'ambito territoriale di riferimento, con affidamento dei servizi, in corso e nuovi, tramite procedure ad evidenza pubblica (art. 4, co. 9-bis)"]
[]
["-","Produce beni e servizi strettamente necessari per il perseguimento delle finalità istituzionali dell'ente (art. 4, co. 1)"]
[]
["-","Produce un servizio di interesse generale (art. 4, co. 2, lett. a)"]
[]
["-","Progetta e realizza un'opera pubblica sulla base di un accordo di programma fra amministrazioni pubbliche (art. 4, co. 2, lett. b)"]
[]
["-","Realizza e gestisce un'opera pubblica ovvero organizza e gestisce un servizio di interesse generale attraverso un contratto di partenariato pubblico/privato (art. 4, co. 2, lett. c)"]
[]
["-","Produce beni o servizi strumentali all'ente o agli enti pubblici partecipanti o alla svolgimento delle loro funzioni(art. 4, co. 2, lett. d)"]
[]
["-","Svolge servizi di committenza (art. 4, co. 2, lett. e)"]
[]
["-","Valorizza il patrimonio immobiliare dell'amministrazione partecipante (art. 4, co. 3)"]
[]
[null,"Indicare le motivazioni della riconducibilità o meno ai vincoli di scopo di cui al co. 1 o ad una delle attività di cui ai commi 2 e 3, anche con riferimento alle società che svolgono le attività di cui ai commi 6, 7, 8:"]
[]
[]
[null,"(a): Inserire uno dei progressivi già indicati nelle schede di ricognizione (02.01; 02.02)."]
[null,"(b): Inserire la ragione sociale come indicata nelle schede di ricognizione (02.01; 02.02)."]
[null,"(c): Indicare il tipo di partecipazione distinguendo i casi in cui la società sia partecipata direttamente, indirettamente (tramite altra società/organismo),"]
[null,"       ovvero in parte direttamente e in parte indirettamente."]
[null,"(d): Inserire l'attività come indicata nelle schede di ricognizione (02.01; 02.02)."]

{"sheet":"03.02_Condizioni_Art20co.2_Tusp","index":9,"n_rows":60,"n_cols":7,"rows_kept":60,"cut":false,"hidden":false,"merged":[[18,3,18,4],[20,1,20,2],[47,1,47,6],[50,1,50,6],[20,5,20,6],[33,1,33,6],[40,1,40,6],[36,1,36,6],[4,4,4,5],[6,4,6,5],[8,4,8,5],[10,4,10,5],[16,3,16,4]]}
[]
[null,"03. REQUISITI TESTO UNICO DELLE SOCIETÀ A PARTECIPAZIONE PUBBLICA"]
[null,"03.02. Condizioni art. 20, co. 2"]
[null,"Compilare una scheda per ciascuna società"]
[null,null,null,"Progressivo società partecipata:",1,null,"(a)"]
[]
[null,null,null,"Denominazione società partecipata:","Val Cavallina Servizi srl",null,"(b)"]
[]
[null,null,null,"Tipo partecipazione:","Diretta",null,"(c)"]
[]
[null,null,null,"Attività svolta:","servizi pubblici locali igiene ambientale e servizi strumentali amministrativi",null,"(d)"]
[]
[null,"Indicare i seguenti dati con riferimento all'esercizio 2016:"]
[{"$nulls":6},"Importi in euro"]
[null,"Numero medio dipendenti (e)",61,null,null,"Costo del personale (f)",2953630]
[null,"Numero amministratori",1,null,null,"Compensi amministratori",16000]
[null,"di cui nominati dall'Ente",0,{"$f":"+IF(C17>C16,\"Attenzione! Il numero indicato non può essere superiore al numero di amministratori\",\"\")","v":""},null,"Compensi componenti organo di controllo",18720]
[null,"Numero componenti organo di controllo",5]
[null,"di cui nominati dall'Ente",0,{"$f":"+IF(C19>C18,\"Attenzione! Il numero indicato non può essere superiore al numero di componenti dell'organo di controllo\",\"\")","v":""}]
[null,null,"Importi in euro",null,null,null,"Importi in euro"]
[null,"RISULTATO D'ESERCIZIO (g)",null,null,null,"FATTURATO"]
[null,2016,578685,null,null,2016,7895972]
[null,2015,239576,null,null,2015,7917671]
[null,2014,190334,null,null,2014,6999446]
[null,2013,103888,null,null,2013,6653101]
[null,2012,214564,null,null,"FATTURATO MEDIO",{"$f":"AVERAGE(G23:G25)","v":7190072.666666667}]
[null,2011,126136]
[null,"Sussistenza delle condizioni di cui all'art. 20, co. 2:"]
[]
["-","La partecipazione societaria non rientra in alcuna delle categorie di cui all'art. 4 (art. 20, co. 2, lett. a)"]
[]
["-","Società priva di dipendenti o con numero di amministratori superiore a quello dei dipendenti (art. 20, co. 2, lett. b)"]
[]
["-","Svolgimento di attività analoghe o similari a quelle svolte da altre società partecipate o da enti pubblici strumentali (art. 20, co. 2, lett. c)"]
[]
[null,"Indicare quali società/enti strumentali:"]
[]
[]
["-","Fatturato medio non superiore a 500.000 euro nel triennio precedente (art. 20, co. 2, lett. d e art. 26, co. 12-quinquies)"]
[]
["-","Perdite in 4 dei 5 esercizi precedenti (per società che non gestiscono un servizio di interesse generale) (art. 20, co. 2, lett. e)"]
[]
["-","Necessità di contenimento dei costi di funzionamento (art. 20, co. 2, lett. f)"]
[]
["-","Necessità di aggregazione con altre società aventi ad oggetto le attività consentite all'art. 4 (art. 20, co. 2, lett. g)"]
[]
[null,"Indicare le motivazioni della sussistenza o meno delle condizioni di cui ai punti precedenti:"]
[]
[]
[null,"Azioni da intraprendere:"]
[]
[]
[null,"(a): Inserire uno dei progressivi già indicati nelle schede di ricognizione (02.01; 02.02)."]
[null,"(b): Inserire la ragione sociale come indicata nelle schede di ricognizione (02.01; 02.02)."]
[null,"(c): Indicare il tipo di partecipazione distinguendo i casi in cui la società sia partecipata direttamente, indirettamente (tramite altra società/organismo),"]
[null,"       ovvero in parte direttamente e in parte indirettamente."]
[null,"(d): Inserire l'attività svolta come indicata nelle schede di ricognizione (02.01; 02.02)."]
[null,"(e): Inserire il numero medio di dipendenti come da nota integrativa al bilancio."]
[null,"(f): Inserire la voce B9 del Conto economico."]
[null,"(g): Inserire il risultato d'esercizio al netto delle imposte."]

{"sheet":"03.02_Condizioni_Art20co.2_ (es","index":10,"n_rows":60,"n_cols":7,"rows_kept":60,"cut":false,"hidden":false,"merged":[[50,1,50,6],[20,1,20,2],[20,5,20,6],[33,1,33,6],[36,1,36,6],[40,1,40,6],[47,1,47,6],[18,3,18,4],[4,4,4,5],[6,4,6,5],[8,4,8,5],[10,4,10,5],[16,3,16,4]]}
[]
[null,"03. REQUISITI TESTO UNICO DELLE SOCIETÀ A PARTECIPAZIONE PUBBLICA"]
[null,"03.02. Condizioni art. 20, co. 2"]
[null,"Compilare una scheda per ciascuna società"]
[null,null,null,"Progressivo società partecipata:","Ind-1",null,"(a)"]
[]
[null,null,null,"Denominazione società partecipata:","Esco Comuni SrL",null,"(b)"]
[]
[null,null,null,"Tipo partecipazione:","Indiretta",null,"(c)"]
[]
[null,null,null,"Attività svolta:","produzione da fonti rinnovabili",null,"(d)"]
[]
[null,"Indicare i seguenti dati con riferimento all'esercizio 2016:"]
[{"$nulls":6},"Importi in euro"]
[null,"Numero medio dipendenti (e)",0,null,null,"Costo del personale (f)",0]
[null,"Numero amministratori",7,null,null,"Compensi amministratori",0]
[null,"di cui nominati dall'Ente",3,{"$f":"+IF(C17>C16,\"Attenzione! Il numero indicato non può essere superiore al numero di amministratori\",\"\")","v":""},null,"Compensi componenti organo di controllo",5831.16]
[null,"Numero componenti organo di controllo",1]
[null,"di cui nominati dall'Ente",0,{"$f":"+IF(C19>C18,\"Attenzione! Il numero indicato non può essere superiore al numero di componenti dell'organo di controllo\",\"\")","v":""}]
[null,null,"Importi in euro",null,null,null,"Importi in euro"]
[null,"RISULTATO D'ESERCIZIO (g)",null,null,null,"FATTURATO"]
[null,2016,30763,null,null,2016,701880]
[null,2015,3666,null,null,2015,348893]
[null,2014,831,null,null,2014,365671]
[null,2013,-21317,null,null,"FATTURATO MEDIO",{"$f":"AVERAGE(G22:G24)","v":472148}]
[null,2012,9598]
[]
[null,"Sussistenza delle condizioni di cui all'art. 20, co. 2:"]
[]
["-","La partecipazione societaria non rientra in alcuna delle categorie di cui all'art. 4 (art. 20, co. 2, lett. a)"]
[]
["-","Società priva di dipendenti o con numero di amministratori superiore a quello dei dipendenti (art. 20, co. 2, lett. b)"]
[]
["-","Svolgimento di attività analoghe o similari a quelle svolte da altre società partecipate o da enti pubblici strumentali (art. 20, co. 2, lett. c)"]
[]
[null,"Indicare quali società/enti strumentali:"]
[]
[]
["-","Fatturato medio non superiore a 500.000 euro nel triennio precedente (art. 20, co. 2, lett. d e art. 26, co. 12-quinquies)"]
[]
["-","Perdite in 4 dei 5 esercizi precedenti (per società che non gestiscono un servizio di interesse generale) (art. 20, co. 2, lett. e)"]
[]
["-","Necessità di contenimento dei costi di funzionamento (art. 20, co. 2, lett. f)"]
[]
["-","Necessità di aggregazione con altre società aventi ad oggetto le attività consentite all'art. 4 (art. 20, co. 2, lett. g)"]
[]
[null,"Indicare le motivazioni della sussistenza o meno delle condizioni di cui ai punti precedenti:"]
[]
[]
[null,"Azioni da intraprendere:"]
[]
[]
[null,"(a): Inserire uno dei progressivi già indicati nelle schede di ricognizione (02.01; 02.02)."]
[null,"(b): Inserire la ragione sociale come indicata nelle schede di ricognizione (02.01; 02.02)."]
[null,"(c): Indicare il tipo di partecipazione distinguendo i casi in cui la società sia partecipata direttamente, indirettamente (tramite altra società/organismo),"]
[null,"       ovvero in parte direttamente e in parte indirettamente."]
[null,"(d): Inserire l'attività svolta come indicata nelle schede di ricognizione (02.01; 02.02)."]
[null,"(e): Inserire il numero medio di dipendenti come da nota integrativa al bilancio."]
[null,"(f): Inserire la voce B9 del Conto economico."]
[null,"(g): Inserire il risultato d'esercizio al netto delle imposte."]

{"sheet":"03.02_Condizioni_Art20co.2_ (IS","index":11,"n_rows":60,"n_cols":7,"rows_kept":60,"cut":false,"hidden":false,"merged":[[50,1,50,6],[20,1,20,2],[20,5,20,6],[33,1,33,6],[36,1,36,6],[40,1,40,6],[47,1,47,6],[18,3,18,4],[4,4,4,5],[6,4,6,5],[8,4,8,5],[10,4,10,5],[16,3,16,4]]}
[]
[null,"03. REQUISITI TESTO UNICO DELLE SOCIETÀ A PARTECIPAZIONE PUBBLICA"]
[null,"03.02. Condizioni art. 20, co. 2"]
[null,"Compilare una scheda per ciascuna società"]
[null,null,null,"Progressivo società partecipata:","Ind- 2",null,"(a)"]
[]
[null,null,null,"Denominazione società partecipata:","Inerti System Ecology SrL",null,"(b)"]
[]
[null,null,null,"Tipo partecipazione:","Indiretta",null,"(c)"]
[]
[null,null,null,"Attività svolta:","raccolta, trasporto rifiuti e conferimento agli impianti di smaltimento",null,"(d)"]
[]
[null,"Indicare i seguenti dati con riferimento all'esercizio 2016:"]
[{"$nulls":6},"Importi in euro"]
[null,"Numero medio dipendenti (e)",0,null,null,"Costo del personale (f)",0]
[null,"Numero amministratori",5,null,null,"Compensi amministratori",0]
[null,"di cui nominati dall'Ente",2,{"$f":"+IF(C17>C16,\"Attenzione! Il numero indicato non può essere superiore al numero di amministratori\",\"\")","v":""},null,"Compensi componenti organo di controllo",0]
[null,"Numero componenti organo di controllo",0]
[null,"di cui nominati dall'Ente",0,{"$f":"+IF(C19>C18,\"Attenzione! Il numero indicato non può essere superiore al numero di componenti dell'organo di controllo\",\"\")","v":""}]
[null,null,"Importi in euro",null,null,null,"Importi in euro"]
[null,"RISULTATO D'ESERCIZIO (g)",null,null,null,"FATTURATO"]
[null,2016,-7909,null,null,2016,0]
[null,2015,-10933,null,null,2015,0]
[null,2014,-9853,null,null,2014,0]
[null,2013,-10458,null,null,"FATTURATO MEDIO",{"$f":"AVERAGE(G22:G24)","v":0}]
[null,2012,-2592]
[]
[null,"Sussistenza delle condizioni di cui all'art. 20, co. 2:"]
[]
["-","La partecipazione societaria non rientra in alcuna delle categorie di cui all'art. 4 (art. 20, co. 2, lett. a)"]
[]
["-","Società priva di dipendenti o con numero di amministratori superiore a quello dei dipendenti (art. 20, co. 2, lett. b)"]
[]
["-","Svolgimento di attività analoghe o similari a quelle svolte da altre società partecipate o da enti pubblici strumentali (art. 20, co. 2, lett. c)"]
[]
[null,"Indicare quali società/enti strumentali:"]
[]
[]
["-","Fatturato medio non superiore a 500.000 euro nel triennio precedente (art. 20, co. 2, lett. d e art. 26, co. 12-quinquies)"]
[]
["-","Perdite in 4 dei 5 esercizi precedenti (per società che non gestiscono un servizio di interesse generale) (art. 20, co. 2, lett. e)"]
[]
["-","Necessità di contenimento dei costi di funzionamento (art. 20, co. 2, lett. f)"]
[]
["-","Necessità di aggregazione con altre società aventi ad oggetto le attività consentite all'art. 4 (art. 20, co. 2, lett. g)"]
[]
[null,"Indicare le motivazioni della sussistenza o meno delle condizioni di cui ai punti precedenti:"]
[]
[]
[null,"Azioni da intraprendere:"]
[]
[]
[null,"(a): Inserire uno dei progressivi già indicati nelle schede di ricognizione (02.01; 02.02)."]
[null,"(b): Inserire la ragione sociale come indicata nelle schede di ricognizione (02.01; 02.02)."]
[null,"(c): Indicare il tipo di partecipazione distinguendo i casi in cui la società sia partecipata direttamente, indirettamente (tramite altra società/organismo),"]
[null,"       ovvero in parte direttamente e in parte indirettamente."]
[null,"(d): Inserire l'attività svolta come indicata nelle schede di ricognizione (02.01; 02.02)."]
[null,"(e): Inserire il numero medio di dipendenti come da nota integrativa al bilancio."]
[null,"(f): Inserire la voce B9 del Conto economico."]
[null,"(g): Inserire il risultato d'esercizio al netto delle imposte."]

{"sheet":"04_Mantenimento","index":12,"n_rows":24,"n_cols":7,"rows_kept":24,"cut":false,"hidden":false,"merged":[[14,1,14,4]]}
[null,"04. MANTENIMENTO SENZA INTERVENTI DI RAZIONALIZZAZIONE"]
[null,"Compilare un record per ciascuna partecipazione che si intende mantenere senza interventi di razionalizzazione"]
[]
[null,"Progressivo","Denominazione società","Tipo di partecipazione","Attività svolta","% Quota di partecipazione","Motivazioni della scelta"]
[null,"A","B","C","D","E","F"]
[null,"1","Val Cavallina Servizi srl","Diretta","servizi pubblici locali di igiene ambientale e servizi strumentali amministrativi",null,"La società svolge con efficienza ed efficacia i servizi gestiti, con parametri economici sostenibili e competitivi rispetto al mercato, in un ambito particolarmente strategico per le amministrazioni affidanti. Infatti, il costo medio del servizio risulta tra i più convenienti nel quadro nazionale, regionale e provinciale, collocandosi tra i riferimenti per rapporto qualità/prezzo, e, quindi, sotto il profilo del rapporto costo/opportunità per gli enti soci. Inoltre, risponde pienamente e coerentemente ai requisiti per l'affidamento diretto in controllo analogo, che viene esercitato dagli Enti soci mediante un apposito organo statutario. In riferimento a quanto evidenziato nella scheda 3.02 circa le condizioni di cui all'art. 20, comma 2, del D.Lgs. 175/2016 TUSP, si dichiara espressamente che non ricorrono le circostanze ivi indicate per avviare procedure di razionalizzazione o dismissione o alienazione della partecipazione, in considerazione della manifesta insussistenza delle cause previste dalla norma, ovvero partecipazioni societarie che non rientrino in alcuna delle categorie di cui all'articolo 4; b) società che risultino prive di dipendenti o abbiano un numero di amministratori superiore a quello dei dipendenti; c) partecipazioni in società che svolgono attività analoghe o similari a quelle svolte da altre società partecipate o da enti pubblici strumentali; d) partecipazioni in società che, nel triennio precedente, abbiano conseguito un fatturato medio non superiore a un milione di euro; e) partecipazioni in società diverse da quelle costituite per la gestione di un servizio d'interesse generale che abbiano prodotto un risultato negativo per quattro dei cinque esercizi precedenti; f) necessità di contenimento dei costi di funzionamento; g) necessità di aggregazione di società aventi ad oggetto le attività consentite all'articolo 4. In riferimento ai servizi a rilevanza economica gestiti dalla società, si rileva che la Regione Lombardia NON ha esercitato la facoltà di istituire Ambiti territoriali ottimali nel settore specifico dei servizi di igiene ambientale."]
[null,"2","Esco Comuni SrL","Indiretta","PRODUZIONE DA FONTI RINNOVABILI",null,"La società svolge con efficienza ed efficacia la gestione degli impianti di produzione da fonti rinnovabili realizzati sugli edifici pubblici degli enti/comuni soci."]
[]
[]
[]
[]
[null,"Colonna A: Inserire uno dei progressivi indicati nelle schede di ricognizione (02.01; 02.02)."]
[null,"Colonna B: Inserire la ragione sociale come indicata nelle schede di ricognizione (02.01; 02.02)."]
[null,"Colonna C: Indicare il tipo di partecipazione distinguendo i casi in cui la società sia partecipata direttamente, indirettamente (tramite altra società/organismo),  "]
[null,"                 oppure in parte direttamente e in parte indirettamente."]
[null,"Colonna D: Inserire l'attività svolta come indicata nelle schede di ricognizione (02.01; 02.02)."]
[null,"Colonna E: Inserire la quota complessiva di partecipazione dell'Amministrazione, sommando le quote dirette (02.01 colonna E) e indirette (02.02 colonna G)."]
[null,"Colonna F: Indicare, ai sensi dell'art. 24 co. 1, la/le motivazioni della scelta di mantenimento della partecipazione senza alcun intervento di razionalizzazione."]
[null,"               Allo scopo, specificare la sussistenza dei requisiti indicati dalla scheda 03.01 (stretta necessarietà della società alle finalità dell'ente e svolgimento da parte della "]
[null,"               medesima di una delle attività consentite dall'art. 4). In caso di attività inerenti ai servizi pubblici locali, esplicitare le ragioni della convenienza economica"]
[null,"               dell'erogazione del servizio mediante la società anzichè in forme alternative (gestione diretta, azienda speciale, ecc.) e della sostenibilità della scelta in termini di "]
[null,"               costo-opportunità per l'ente. Con riferimento alle condizioni di cui alla scheda 03.02, dichiarare espressamente che non ricorrono le condizioni ivi indicate e darne "]
[null,"              motivazione. In relazione ai servizi pubblici a rete di rilevanza economica, dare dimostrazione della non necessarietà di operazioni di aggregazione con altre società"]
[null,"              operanti nello stesso settore e del fatto che la società svolge servizi non compresi tra quelli da affidare per il tramite dell'Ente di Governo d'Ambito."]

{"sheet":"05.01_Azioni_Contenimento_Costi","index":13,"n_rows":34,"n_cols":9,"rows_kept":34,"cut":false,"hidden":false,"merged":[[23,1,23,7],[26,1,26,7],[11,3,11,6],[7,3,7,7],[14,1,14,7],[17,1,17,7],[20,1,20,7]]}
[]
[null,"05. AZIONI DI RAZIONALIZZAZIONE"]
[null,"05.01. Contenimento costi"]
[null,"Compilare una scheda per ciascuna società per la quale si prevedono interventi di contenimento dei costi "]
[]
[null,null,"Progressivo società partecipata:",null,"(a)",null,"Quota di partecipazione detenuta:",null,"(b)"]
[]
[null,null,"Denominazione società partecipata:",{"$nulls":5},"   (c)"]
[]
[null,null,"Tipo partecipazione:",null,"(d)"]
[]
[null,null,"Attività svolta:",{"$nulls":4},"(e)"]
[]
[null,"Descrivere gli interventi di contenimento programmati: "]
[]
[]
[null,"Indicare le motivazioni:"]
[]
[]
[null,"Indicare le modalità di attuazione:"]
[]
[]
[null,"Indicare i tempi stimati:"]
[]
[]
[null,"Indicare una stima dei risparmi attesi:"]
[]
[]
[null,"(a): Inserire uno dei progressivi già indicati nelle schede di ricognizione (02.01; 02.02)."]
[null,"(b): Inserire la quota complessiva di partecipazione dell'Amministrazione, sommando le quote dirette (02.01 colonna E) e indirette (02.02 colonna G)."]
[null,"(c): Inserire la ragione sociale come indicata nelle schede di ricognizione (02.01; 02.02)."]
[null,"(d): Indicare il tipo di partecipazione distinguendo i casi in cui la società sia partecipata direttamente, indirettamente (tramite altra società/organismo),"]
[null,"       ovvero in parte direttamente e in parte indirettamente."]
[null,"(e): Inserire l'attività come indicata nelle schede di ricognizione (02.01; 02.02)."]

{"sheet":"05.02_Azioni_Cessione","index":14,"n_rows":54,"n_cols":15,"rows_kept":54,"cut":false,"hidden":false,"merged":[[29,1,29,7],[5,16,9,16],[7,5,7,6],[20,1,20,7],[23,1,23,7],[26,1,26,7],[9,3,9,5],[11,3,11,7],[14,1,14,7],[17,1,17,7]]}
[]
[null,"05. AZIONI DI RAZIONALIZZAZIONE"]
[null,"05.02. Cessione/Alienazione quote"]
[null,"Compilare una scheda per ciascuna partecipazione che si intende cedere/alienare "]
[]
[null,null,"Progressivo società partecipata:","Ind-2","(a)",null,"Quota di partecipazione detenuta:",30.38,"(b)"]
[]
[null,null,"Denominazione società partecipata:","INERTI SYSTEM ECOLOGY SRL","(c)","Quota di partecipazione da cedere/alienare:",null,null,"(d)"]
[]
[null,null,"Tipo partecipazione:","Indiretta",null,null,"(e)"]
[]
[null,null,"Attività svolta:","raccolta, trasporto rifiuti e conferimento agli impianti di smaltimento",{"$nulls":4},"(f)"]
[]
[null,"Selezionare le motivazioni della scelta:"]
[null,"Società inattiva o non più operativa",{"$nulls":6},"(g)"]
[]
[null,"In caso di scelta dell'opzione \"altro\", specificare:"]
[]
[]
[null,"Fornire ulteriori dettagli sulle motivazioni della scelta:"]
[]
[]
[null,"Indicare le modalità di attuazione della cessione/alienazione:"]
[null,"Dismissione a soci privati"]
[]
[null,"Indicare i tempi stimati per il perfezionamento della cessione/alienazione:"]
[null,"entro il 2017"]
[]
[null,"Indicare una stima dei risparmi attesi:"]
[]
[]
[null,"(a): Inserire uno dei progressivi già indicati nelle schede di ricognizione (02.01; 02.02)."]
[null,"(b): Inserire la quota complessiva di partecipazione dell'Amministrazione, sommando le quote dirette (02.01 colonna E) e indirette (02.02 colonna G)."]
[null,"(c): Inserire la ragione sociale come indicata nelle schede di ricognizione (02.01; 02.02)."]
[null,"(d): Inserire la quota di partecipazione che si intende cedere/alienare."]
[null,"(e): Indicare il tipo di partecipazione distinguendo i casi in cui la società sia partecipata direttamente, indirettamente (tramite altra società/organismo),"]
[null,"       ovvero in parte direttamente e in parte indirettamente."]
[null,"(f): Inserire l'attività svolta come indicata nelle schede di ricognizione (02.01; 02.02)."]
[null,"(g): Vedi scheda 06. \"Appendice_motivazioni\"."]
[]
[]
[]
[{"$nulls":14},"ELENCO OPZIONI MOTIVAZIONI"]
[{"$nulls":14},"Internalizzazione delle attività svolte dalla società"]
[{"$nulls":14},"Scelta di gestione del servizio in forma alternativa"]
[{"$nulls":14},"Intervenuta modifica nella gestione/amministrazione della società, non condivisa dall’Ente"]
[{"$nulls":14},"Società inattiva o non più operativa"]
[{"$nulls":14},"Società non indispensabile per il perseguimento delle finalità dell'Ente"]
[{"$nulls":14},"Società composta da soli amministratori o con numero dipendenti inferiore al numero amministratori"]
[{"$nulls":14},"Società con fatturato medio inferiore ad 1 milione di euro nel triennio precedente"]
[{"$nulls":14},"Perdite reiterate"]
[{"$nulls":14},"Carenza persistente di liquidità"]
[{"$nulls":14},"Società con oggetto analogo o similare ad altri organismi partecipati dall'Ente"]
[{"$nulls":14},"Altro (specificare)"]

{"sheet":"05.03_Azioni_Liquidazione","index":15,"n_rows":53,"n_cols":15,"rows_kept":53,"cut":false,"hidden":false,"merged":[[29,1,29,7],[23,1,23,7],[26,1,26,7],[7,3,7,7],[11,3,11,6],[14,1,14,7],[17,1,17,7],[20,1,20,7]]}
[]
[null,"05. AZIONI DI RAZIONALIZZAZIONE"]
[null,"05.03. Liquidazione"]
[null,"Compilare una scheda per ciascuna partecipazione che si intende mettere in liquidazione "]
[]
[null,null,"Progressivo società partecipata:",null,"(a)",null,"Quota di partecipazione detenuta:",null,"(b)"]
[]
[null,null,"Denominazione società partecipata:",{"$nulls":5},"   (c)"]
[]
[null,null,"Tipo partecipazione:",null,"(d)"]
[]
[null,null,"Attività svolta:",{"$nulls":4},"(e)"]
[]
[null,"Selezionare le motivazioni della scelta:"]
[{"$nulls":8},"(f)"]
[]
[null,"In caso di scelta dell'opzione \"altro\", specificare:"]
[]
[]
[null,"Fornire ulteriori dettagli sulle motivazioni della scelta:"]
[]
[]
[null,"Indicare le modalità di attuazione della liquidazione:"]
[]
[]
[null,"Indicare i tempi stimati per la conclusione della procedura:"]
[]
[]
[null,"Indicare una stima dei risparmi attesi:"]
[]
[]
[null,"(a): Inserire uno dei progressivi già indicati nelle schede di ricognizione (02.01; 02.02)."]
[null,"(b): Inserire la quota complessiva di partecipazione dell'Amministrazione, sommando le quote dirette (02.01 colonna E) e indirette (02.02 colonna G)."]
[null,"(c): Inserire la ragione sociale come indicata nelle schede di ricognizione (02.01; 02.02)."]
[null,"(d): Indicare il tipo di partecipazione distinguendo i casi in cui la società sia partecipata direttamente, indirettamente (tramite altra società/organismo),"]
[null,"       ovvero in parte direttamente e in parte indirettamente."]
[null,"(e): Inserire l'attività come indicata nelle schede di ricognizione (02.01; 02.02)."]
[null,"(f): Vedi scheda 06. \"Appendice_motivazioni\"."]
[]
[]
[]
[{"$nulls":14},"ELENCO OPZIONI MOTIVAZIONI"]
[{"$nulls":14},"Internalizzazione delle attività svolte dalla società"]
[{"$nulls":14},"Scelta di gestione del servizio in forma alternativa"]
[{"$nulls":14},"Intervenuta modifica nella gestione/amministrazione della società, non condivisa dall’Ente"]
[{"$nulls":14},"Società inattiva o non più operativa"]
[{"$nulls":14},"Società non indispensabile per il perseguimento delle finalità dell'Ente"]
[{"$nulls":14},"Società composta da soli amministratori o con numero dipendenti inferiore al numero amministratori"]
[{"$nulls":14},"Società con fatturato medio inferiore ad 1 milione di euro nel triennio precedente"]
[{"$nulls":14},"Perdite reiterate"]
[{"$nulls":14},"Carenza persistente di liquidità"]
[{"$nulls":14},"Società con oggetto analogo o similare ad altri organismi partecipati dall'Ente"]
[{"$nulls":14},"Altro (specificare)"]

{"sheet":"05.04_Azioni_Fusione","index":16,"n_rows":49,"n_cols":15,"rows_kept":49,"cut":false,"hidden":false,"merged":[[26,1,26,7],[29,1,29,7],[11,3,11,7],[7,3,7,7],[14,1,14,7],[17,1,17,7],[20,1,20,7],[23,1,23,7]]}
[]
[null,"05. AZIONI DI RAZIONALIZZAZIONE"]
[null,"05.04. Fusione/Incorporazione"]
[null,"Compilare una scheda per ciascuna partecipazione che si intende fondere/incorporare "]
[]
[null,null,"Progressivo società partecipata:",null,"(a)",null,"Quota di partecipazione detenuta:",null,"(b)"]
[]
[null,null,"Denominazione società partecipata:",{"$nulls":5},"   (c)"]
[]
[null,null,"Tipo partecipazione:",null,"(d)"]
[]
[null,null,"Attività svolta:",{"$nulls":5},"(e)"]
[]
[null,"Selezionare le motivazioni della scelta:"]
[{"$nulls":8},"(f)"]
[]
[null,"In caso di scelta dell'opzione \"altro\", specificare:"]
[]
[]
[null,"Fornire ulteriori dettagli sulle motivazioni della scelta:"]
[]
[]
[null,"Indicare le modalità di attuazione dell'operazione straordinaria:"]
[]
[]
[null,"Indicare i tempi stimati per il perfezionamento dell'operazione:"]
[]
[]
[null,"Indicare una stima dei risparmi attesi:"]
[]
[]
[null,"(a): Inserire uno dei progressivi già indicati nelle schede di ricognizione (02.01; 02.02)."]
[null,"(b): Inserire la quota complessiva di partecipazione dell'Amministrazione, sommando le quote dirette (02.01 colonna E) e indirette (02.02 colonna G)."]
[null,"(c): Inserire la ragione sociale come indicata nelle schede di ricognizione (02.01; 02.02)."]
[null,"(d): Indicare il tipo di partecipazione distinguendo i casi in cui la società sia partecipata direttamente, indirettamente (tramite altra società/organismo),"]
[null,"       ovvero in parte direttamente e in parte indirettamente."]
[null,"(e): Inserire l'attività come indicata nelle schede di ricognizione (02.01; 02.02)."]
[null,"(f): Vedi scheda 06. \"Appendice_motivazioni\"."]
[]
[]
[]
[]
[{"$nulls":14},"ELENCO OPZIONI MOTIVAZIONI"]
[{"$nulls":14},"Svolgimento di attività complementari o analoghe a quelle coinvolte nel progetto di fusione/incorporazione"]
[{"$nulls":14},"Aggregazione di società di servizi pubblici locali a rilevanza economica"]
[{"$nulls":14},"Riduzione/contenimento dei costi di funzionamento (compresi quelli degli amministratori e organi di revisione interna) o dei costi di produzione di beni e servizi"]
[{"$nulls":14},"Compensazione di eventuali squilibri finanziari e/o economici preesistenti alla fusione/incorporazione "]
[{"$nulls":14},"Realizzazione di economie di scala e di altre sinergie per l'integrazione di fasi consecutive della produzione di beni e servizi e/o migliore utilizzo degli impianti, delle attrezzature e del know how in uso"]
[{"$nulls":14},"Altro (specificare)"]

{"sheet":"05.05_Riepilogo","index":17,"n_rows":234,"n_cols":11,"rows_kept":234,"cut":false,"hidden":false,"merged":[[4,1,6,1],[7,1,9,1],[10,1,12,1],[13,1,15,1]]}
[null,"05. AZIONI DI RAZIONALIZZAZIONE"]
[null,"05.05. Riepilogo"]
[]
[null,"Azione di razionalizzazione","Progressivo","Denominazione società","% Quota di partecipazione","Tempi di realizzazione degli interventi","Risparmi attesi (importo)"]
[null,"Contenimento dei costi"]
[]
[]
[null,"Cessione/Alienazione quote",2,"Inerti System Ecology Srl",30.38,"entro 2017"]
[]
[]
[null,"Liquidazione"]
[]
[]
[null,"Fusione/Incorporazione"]
{"$rows_empty":8}
[{"$nulls":9},"Elenco progressivi partecipate dirette","Elenco progressivi partecipate indirette"]
[{"$nulls":9},{"$f":"+#REF!","v":{"$error":"#REF!"}},{"$f":"+'02.02_Ricognizione_Indirette'!B6","v":1}]
[{"$nulls":9},{"$f":"+C5","v":0},{"$f":"+'02.02_Ricognizione_Indirette'!B7","v":2}]
[{"$nulls":9},{"$f":"+C7","v":0},{"$f":"+'02.02_Ricognizione_Indirette'!B8","v":0}]
[{"$nulls":9},{"$f":"+C8","v":2},{"$f":"+'02.02_Ricognizione_Indirette'!B13","v":0}]
[{"$nulls":9},{"$f":"+C10","v":0},{"$f":"+'02.02_Ricognizione_Indirette'!B14","v":0}]
[{"$nulls":9},{"$f":"+C11","v":0},{"$f":"+'02.02_Ricognizione_Indirette'!B15","v":0}]
[{"$nulls":9},{"$f":"+C13","v":0},{"$f":"+'02.02_Ricognizione_Indirette'!B22","v":"Colonna G: indicare una unica quota di partecipazione (comprensiva di decimali) determinata in proporzione alla quote di partecipazione dei livelli precedenti. "}]
[{"$nulls":9},{"$f":"+C14","v":0},{"$f":"+'02.02_Ricognizione_Indirette'!B30","v":0}]
[{"$nulls":9},{"$f":"+C16","v":0},{"$f":"+'02.02_Ricognizione_Indirette'!B31","v":0}]
[{"$nulls":9},{"$f":"+#REF!","v":{"$error":"#REF!"}},{"$f":"+'02.02_Ricognizione_Indirette'!B32","v":0}]
[{"$nulls":9},{"$f":"+#REF!","v":{"$error":"#REF!"}},{"$f":"+'02.02_Ricognizione_Indirette'!B33","v":0}]
[{"$nulls":9},{"$f":"+#REF!","v":{"$error":"#REF!"}},{"$f":"+'02.02_Ricognizione_Indirette'!B34","v":0}]
[{"$nulls":9},{"$f":"+#REF!","v":{"$error":"#REF!"}},{"$f":"+'02.02_Ricognizione_Indirette'!B35","v":0}]
[{"$nulls":9},{"$f":"+#REF!","v":{"$error":"#REF!"}},{"$f":"+'02.02_Ricognizione_Indirette'!B36","v":0}]
[{"$nulls":9},{"$f":"+C17","v":0},{"$f":"+'02.02_Ricognizione_Indirette'!B37","v":0}]
[{"$nulls":9},0,{"$f":"+'02.02_Ricognizione_Indirette'!B38","v":0}]
[{"$nulls":9},0,{"$f":"+'02.02_Ricognizione_Indirette'!B39","v":0}]
[{"$nulls":9},0,{"$f":"+'02.02_Ricognizione_Indirette'!B40","v":0}]
[{"$nulls":9},0,{"$f":"+'02.02_Ricognizione_Indirette'!B41","v":0}]
[{"$nulls":9},0,{"$f":"+'02.02_Ricognizione_Indirette'!B42","v":0}]
[{"$nulls":9},0,{"$f":"+'02.02_Ricognizione_Indirette'!B43","v":0}]
[{"$nulls":9},0,{"$f":"+'02.02_Ricognizione_Indirette'!B44","v":0}]
[{"$nulls":9},0,{"$f":"+'02.02_Ricognizione_Indirette'!B45","v":0}]
[{"$nulls":9},0,{"$f":"+'02.02_Ricognizione_Indirette'!B46","v":0}]
[{"$nulls":9},0,{"$f":"+'02.02_Ricognizione_Indirette'!B47","v":0}]
[{"$nulls":9},0,{"$f":"+'02.02_Ricognizione_Indirette'!B48","v":0}]
[{"$nulls":9},0,{"$f":"+'02.02_Ricognizione_Indirette'!B49","v":0}]
[{"$nulls":9},0,{"$f":"+'02.02_Ricognizione_Indirette'!B50","v":0}]
[{"$nulls":9},0,{"$f":"+'02.02_Ricognizione_Indirette'!B51","v":0}]
[{"$nulls":9},0,{"$f":"+'02.02_Ricognizione_Indirette'!B52","v":0}]
[{"$nulls":9},0,{"$f":"+'02.02_Ricognizione_Indirette'!B53","v":0}]
[{"$nulls":9},0,{"$f":"+'02.02_Ricognizione_Indirette'!B54","v":0}]
[{"$nulls":9},0,{"$f":"+'02.02_Ricognizione_Indirette'!B55","v":0}]
[{"$nulls":9},0,{"$f":"+'02.02_Ricognizione_Indirette'!B56","v":0}]
[{"$nulls":9},0,{"$f":"+'02.02_Ricognizione_Indirette'!B57","v":0}]
[{"$nulls":9},0,{"$f":"+'02.02_Ricognizione_Indirette'!B58","v":0}]
[{"$nulls":9},0,{"$f":"+'02.02_Ricognizione_Indirette'!B59","v":0}]
[{"$nulls":9},0,{"$f":"+'02.02_Ricognizione_Indirette'!B60","v":0}]
[{"$nulls":9},0,{"$f":"+'02.02_Ricognizione_Indirette'!B61","v":0}]
[{"$nulls":9},0,{"$f":"+'02.02_Ricognizione_Indirette'!B62","v":0}]
[{"$nulls":9},0,{"$f":"+'02.02_Ricognizione_Indirette'!B63","v":0}]
[{"$nulls":7},"SI",2017]
[{"$nulls":7},"NO",{"$f":"+I65-1","v":2016}]
[{"$nulls":8},{"$f":"+I66-1","v":2015}]
[{"$nulls":8},2014]
[{"$nulls":8},2013]
[{"$nulls":8},2012]
[{"$nulls":8},2011]
[{"$nulls":8},2010]
[{"$nulls":8},2009]
[{"$nulls":8},2008]
[{"$nulls":8},2007]
[{"$nulls":8},2006]
[{"$nulls":8},2005]
[{"$nulls":8},2004]
[{"$nulls":8},2003]
[{"$nulls":8},2002]
[{"$nulls":8},2001]
[{"$nulls":8},2000]
[{"$nulls":8},1999]
[{"$nulls":8},1998]
[{"$nulls":8},1997]
[{"$nulls":8},1996]
[{"$nulls":8},1995]
[{"$nulls":8},1994]
[{"$nulls":8},1993]
[{"$nulls":8},1992]
[{"$nulls":8},1991]
[{"$nulls":8},1990]
[{"$nulls":8},1989]
[{"$nulls":8},1988]
[{"$nulls":8},1987]
[{"$nulls":8},1986]
[{"$nulls":8},1985]
[{"$nulls":8},1984]
[{"$nulls":8},1983]
[{"$nulls":8},1982]
[{"$nulls":8},1981]
[{"$nulls":8},1980]
[{"$nulls":8},1979]
[{"$nulls":8},1978]
[{"$nulls":8},1977]
[{"$nulls":8},1976]
[{"$nulls":8},1975]
[{"$nulls":8},1974]
[{"$nulls":8},1973]
[{"$nulls":8},1972]
[{"$nulls":8},1971]
[{"$nulls":8},1970]
[{"$nulls":8},1969]
[{"$nulls":8},1968]
[{"$nulls":8},1967]
[{"$nulls":8},1966]
[{"$nulls":8},1965]
[{"$nulls":8},1964]
[{"$nulls":8},1963]
[{"$nulls":8},1962]
[{"$nulls":8},1961]
[{"$nulls":8},1960]
[{"$nulls":8},1959]
[{"$nulls":8},1958]
[{"$nulls":8},1957]
[{"$nulls":8},1956]
[{"$nulls":8},1955]
[{"$nulls":8},1954]
[{"$nulls":8},1953]
[{"$nulls":8},1952]
[{"$nulls":8},{"$f":"+I130-1","v":1951}]
[{"$nulls":8},1950]
[{"$nulls":8},1949]
[{"$nulls":8},1948]
[{"$nulls":8},1947]
[{"$nulls":8},1946]
[{"$nulls":8},1945]
[{"$nulls":8},1944]
[{"$nulls":8},1943]
[{"$nulls":8},1942]
[{"$nulls":8},1941]
[{"$nulls":8},1940]
[{"$nulls":8},1939]
[{"$nulls":8},1938]
[{"$nulls":8},1937]
[{"$nulls":8},1936]
[{"$nulls":8},1935]
[{"$nulls":8},1934]
[{"$nulls":8},1933]
[{"$nulls":8},1932]
[{"$nulls":8},1931]
[{"$nulls":8},1930]
[{"$nulls":8},1929]
[{"$nulls":8},1928]
[{"$nulls":8},1927]
[{"$nulls":8},1926]
[{"$nulls":8},1925]
[{"$nulls":8},1924]
[{"$nulls":8},1923]
[{"$nulls":8},1922]
[{"$nulls":8},1921]
[{"$nulls":8},1920]
[{"$nulls":8},1919]
[{"$nulls":8},1918]
[{"$nulls":8},1917]
[{"$nulls":8},1916]
[{"$nulls":8},1915]
[{"$nulls":8},1914]
[{"$nulls":8},1913]
[{"$nulls":8},1912]
[{"$nulls":8},1911]
[{"$nulls":8},1910]
[{"$nulls":8},1909]
[{"$nulls":8},1908]
[{"$nulls":8},1907]
[{"$nulls":8},1906]
[{"$nulls":8},1905]
[{"$nulls":8},1904]
[{"$nulls":8},1903]
[{"$nulls":8},1902]
[{"$nulls":8},1901]
[{"$nulls":8},1900]
[{"$nulls":8},1899]
[{"$nulls":8},1898]
[{"$nulls":8},1897]
[{"$nulls":8},1896]
[{"$nulls":8},1895]
[{"$nulls":8},1894]
[{"$nulls":8},1893]
[{"$nulls":8},1892]
[{"$nulls":8},1891]
[{"$nulls":8},1890]
[{"$nulls":8},1889]
[{"$nulls":8},1888]
[{"$nulls":8},{"$f":"+I194-1","v":1887}]
[{"$nulls":8},1886]
[{"$nulls":8},1885]
[{"$nulls":8},1884]
[{"$nulls":8},1883]
[{"$nulls":8},1882]
[{"$nulls":8},1881]
[{"$nulls":8},1880]
[{"$nulls":8},1879]
[{"$nulls":8},1878]
[{"$nulls":8},1877]
[{"$nulls":8},1876]
[{"$nulls":8},1875]
[{"$nulls":8},1874]
[{"$nulls":8},1873]
[{"$nulls":8},1872]
[{"$nulls":8},1871]
[{"$nulls":8},1870]
[{"$nulls":8},1869]
[{"$nulls":8},1868]
[{"$nulls":8},1867]
[{"$nulls":8},1866]
[{"$nulls":8},1865]
[{"$nulls":8},1864]
[{"$nulls":8},1863]
[{"$nulls":8},1862]
[{"$nulls":8},1861]
[{"$nulls":8},1860]
[{"$nulls":8},1859]
[{"$nulls":8},1858]
[{"$nulls":8},1857]
[{"$nulls":8},1856]
[{"$nulls":8},1855]
[{"$nulls":8},1854]
[{"$nulls":8},1853]
[{"$nulls":8},1852]
[{"$nulls":8},1851]
[{"$nulls":8},1850]
[{"$nulls":8},1849]
[{"$nulls":8},1848]

{"sheet":"06._Elenco_motivazioni","index":18,"n_rows":46,"n_cols":4,"rows_kept":46,"cut":false,"hidden":false,"merged":[]}
[null,"06. ELENCO MOTIVAZIONI SCHEDE 05.02, 05.03 E 05.04"]
[]
[null,"Scheda 05.02:",null,"Cessione/Alienazione quote"]
[null,null,null,"Nella \"cella\" relativa alla selezione delle motivazioni della scelta, dal menù a tendina"]
[null,null,null,"è possibile scegliere tra le seguenti opzioni:"]
[]
[null,null,"-","Internalizzazione delle attività svolte dalla società"]
[null,null,"-","Scelta di gestione del servizio in forma alternativa"]
[null,null,"-","Intervenuta modifica nella gestione/amministrazione della società, non condivisa dall’Ente"]
[null,null,"-","Società inattiva o non più operativa"]
[null,null,"-","Società non indispensabile per il perseguimento delle finalità dell'Ente"]
[null,null,"-","Società composta da soli amministratori o con numero dipendenti inferiore al numero amministratori"]
[null,null,"-","Società con fatturato medio inferiore a 500 mila  euro nel triennio precedente"]
[null,null,"-","Perdite reiterate"]
[null,null,"-","Carenza persistente di liquidità"]
[null,null,"-","Società con oggetto analogo o similare ad altri organismi partecipati dall'Ente"]
[null,null,"-","Altro (specificare)"]
[]
[null,"Scheda 05.03:",null,"Liquidazione"]
[null,null,null,"Nella \"cella\" relativa alla selezione delle motivazioni della scelta, dal menù a tendina"]
[null,null,null,"è possibile scegliere tra le seguenti opzioni:"]
[]
[null,null,"-","Internalizzazione delle attività svolte dalla società"]
[null,null,"-","Scelta di gestione del servizio in forma alternativa"]
[null,null,"-","Intervenuta modifica nella gestione/amministrazione della società, non condivisa dall’Ente"]
[null,null,"-","Società inattiva o non più operativa"]
[null,null,"-","Società non indispensabile per il perseguimento delle finalità dell'Ente"]
[null,null,"-","Società composta da soli amministratori o con numero dipendenti inferiore al numero amministratori"]
[null,null,"-","Società con fatturato medio inferiore a 500 mila euro euro nel triennio precedente"]
[null,null,"-","Perdite reiterate"]
[null,null,"-","Carenza persistente di liquidità"]
[null,null,"-","Società con oggetto analogo o similare ad altri organismi partecipati dall'Ente"]
[null,null,"-","Altro (specificare)"]
[]
[null,"Scheda 05.04:",null,"Fusione/Incorporazione"]
[null,null,null,"Nella \"cella\" relativa alla selezione delle motivazioni della scelta, dal menù a tendina"]
[null,null,null,"è possibile scegliere tra le seguenti opzioni:"]
[]
[null,null,"-","Svolgimento di attività complementari o analoghe a quelle coinvolte nel progetto di fusione/incorporazione"]
[null,null,"-","Aggregazione di società di servizi pubblici locali a rilevanza economica"]
[null,null,"-","Riduzione/contenimento dei costi di funzionamento (compresi quelli degli amministratori e organi"]
[null,null,null,"di revisione interna) o dei costi di produzione di beni e servizi"]
[null,null,"-","Compensazione di eventuali squilibri finanziari e/o economici preesistenti alla fusione/incorporazione "]
[null,null,"-","Realizzazione di economie di scala e di altre sinergie per l'integrazione di fasi consecutive della produzione"]
[null,null,null,"di beni e servizi e/o migliore utilizzo degli impianti, delle attrezzature e del know how in uso"]
[null,null,"-","Altro (specificare)"]